[Event "Titled Tuesday Blitz November 22 Late 2022"]
[White "Taboas Rodriguez, Daniel"]
[Black "Keymer, Vincent"]
[WhiteFideId "2208466"]
[BlackFideId "12940690"]
[WhiteElo "2329"]
[BlackElo "2600"]
[Result "0-1"]
[Round "01"]
[TimeControl "180+1"]
[Date "2022.11.22"]
[WhiteClock "0:00:55"]
[BlackClock "0:01:25"]

1. d4 {[%clk 0:02:59]}  Nf6 {[%clk 0:02:59]} 2. Nf3 {[%clk 0:02:59]}  e6 {[%clk 0:02:52]} 3. c4 {[%clk 0:02:59]}  d5 {[%clk 0:02:51]} 4. Nc3 {[%clk 0:02:59]}  c6 {[%clk 0:02:52]} 5. Bg5 {[%clk 0:03:00]}  h6 {[%clk 0:02:51]} 6. Bxf6 {[%clk 0:02:59]}  Qxf6 {[%clk 0:02:51]} 7. e3 {[%clk 0:03:00]}  g6 {[%clk 0:02:51]} 8. Bd3 {[%clk 0:03:00]}  Nd7 {[%clk 0:02:46]} 9. O-O {[%clk 0:03:00]}  Bg7 {[%clk 0:02:45]} 10. Qe2 {[%clk 0:02:59]}  O-O {[%clk 0:02:45]} 11. e4 {[%clk 0:02:53]}  dxc4 {[%clk 0:02:44]} 12. Bxc4 {[%clk 0:02:49]}  Qe7 {[%clk 0:02:32]} 13. e5 {[%clk 0:02:45]}  b5 {[%clk 0:02:18]} 14. Bb3 {[%clk 0:02:31]}  Bb7 {[%clk 0:02:13]} 15. Ne4 {[%clk 0:02:29]}  c5 {[%clk 0:02:13]} 16. Nxc5 {[%clk 0:02:26]}  Nxc5 {[%clk 0:02:10]} 17. dxc5 {[%clk 0:02:26]}  Qxc5 {[%clk 0:02:10]} 18. Rfe1 {[%clk 0:02:17]}  Rac8 {[%clk 0:02:10]} 19. Rad1 {[%clk 0:02:11]}  a5 {[%clk 0:02:07]} 20. Rd7 {[%clk 0:01:53]}  Bc6 {[%clk 0:01:58]} 21. Rd2 {[%clk 0:01:43]}  a4 {[%clk 0:01:56]} 22. Bd1 {[%clk 0:01:43]}  Bxf3 {[%clk 0:01:51]} 23. gxf3 {[%clk 0:01:33]}  Qb4 {[%clk 0:01:51]} 24. Rd3 {[%clk 0:01:25]}  Rfd8 {[%clk 0:01:47]} 25. Bc2 {[%clk 0:01:13]}  Qxb2 {[%clk 0:01:44]} 26. Rb1 {[%clk 0:01:04]}  Qxa2 {[%clk 0:01:39]} 27. Rxb5 {[%clk 0:01:00]}  a3 {[%clk 0:01:27]} 28. Rb7 {[%clk 0:00:54]}  Rxd3 {[%clk 0:01:25]} 29. Bxd3 {[%clk 0:00:55]}  Qxe2 {[%clk 0:01:25]} 30. Bxe2 {[%clk 0:00:56]}  a2 {[%clk 0:01:25]} 31. Ra7 {[%clk 0:00:55]}  Rc1+ {[%clk 0:01:25]} 0-1


[Site "https://www.chess.com"]

[Event "Titled Tuesday Blitz November 22 Late 2022"]
[White "Tarnowska, Aleksandra"]
[Black "Milchev, Nikolay"]
[WhiteFideId "1180967"]
[BlackFideId "2906090"]
[WhiteElo "1776"]
[BlackElo "2449"]
[Result "1-0"]
[Round "01"]
[TimeControl "180+1"]
[Date "2022.11.23"]
[WhiteClock "0:00:08"]
[BlackClock "0:01:34"]

1. e4 {[%clk 0:02:59]}  Nf6 {[%clk 0:02:59]} 2. e5 {[%clk 0:02:56]}  Nd5 {[%clk 0:02:57]} 3. Nf3 {[%clk 0:02:57]}  d6 {[%clk 0:02:54]} 4. d4 {[%clk 0:02:57]}  g6 {[%clk 0:02:53]} 5. Bc4 {[%clk 0:02:54]}  Nb6 {[%clk 0:02:53]} 6. Bb3 {[%clk 0:02:54]}  Bg7 {[%clk 0:02:54]} 7. O-O {[%clk 0:02:52]}  O-O {[%clk 0:02:53]} 8. h3 {[%clk 0:02:47]}  dxe5 {[%clk 0:02:52]} 9. dxe5 {[%clk 0:02:46]}  Qxd1 {[%clk 0:02:50]} 10. Rxd1 {[%clk 0:02:47]}  Nc6 {[%clk 0:02:50]} 11. Bf4 {[%clk 0:02:44]}  a5 {[%clk 0:02:51]} 12. a4 {[%clk 0:02:36]}  Be6 {[%clk 0:02:48]} 13. Nbd2 {[%clk 0:02:24]}  Rad8 {[%clk 0:02:42]} 14. Ne4 {[%clk 0:02:03]}  Bxb3 {[%clk 0:02:36]} 15. cxb3 {[%clk 0:02:03]}  Nd5 {[%clk 0:02:32]} 16. Bg3 {[%clk 0:01:58]}  e6 {[%clk 0:02:27]} 17. Rac1 {[%clk 0:01:36]}  Ndb4 {[%clk 0:02:25]} 18. Nf6+ {[%clk 0:01:19]}  Kh8 {[%clk 0:02:18]} 19. Nd7 {[%clk 0:01:15]}  Rfe8 {[%clk 0:02:17]} 20. Nf6 {[%clk 0:01:12]}  Rxd1+ {[%clk 0:02:12]} 21. Rxd1 {[%clk 0:01:12]}  Rd8 {[%clk 0:02:12]} 22. Rxd8+ {[%clk 0:01:09]}  Nxd8 {[%clk 0:02:13]} 23. Ng5 {[%clk 0:01:06]}  h6 {[%clk 0:02:09]} 24. Nge4 {[%clk 0:01:06]}  Ndc6 {[%clk 0:02:07]} 25. Nc5 {[%clk 0:01:04]}  b6 {[%clk 0:02:06]} 26. Ncd7 {[%clk 0:01:01]}  Nd3 {[%clk 0:02:05]} 27. Ne8 {[%clk 0:00:59]}  Nxb2 {[%clk 0:01:51]} 28. Nxc7 {[%clk 0:00:57]}  Nd3 {[%clk 0:01:48]} 29. Na8 {[%clk 0:00:49]}  Ndxe5 {[%clk 0:01:46]} 30. Nxe5 {[%clk 0:00:45]}  Nxe5 {[%clk 0:01:46]} 31. Nxb6 {[%clk 0:00:43]}  Nd3 {[%clk 0:01:45]} 32. Nc4 {[%clk 0:00:42]}  Bc3 {[%clk 0:01:44]} 33. Bc7 {[%clk 0:00:41]}  Nc5 {[%clk 0:01:44]} 34. Bxa5 {[%clk 0:00:39]}  Bd4 {[%clk 0:01:43]} 35. b4 {[%clk 0:00:36]}  Nxa4 {[%clk 0:01:43]} 36. b5 {[%clk 0:00:35]}  Nc5 {[%clk 0:01:40]} 37. Bb6 {[%clk 0:00:32]}  Nb3 {[%clk 0:01:39]} 38. Bxd4+ {[%clk 0:00:32]}  Nxd4 {[%clk 0:01:40]} 39. b6 {[%clk 0:00:30]}  Nc6 {[%clk 0:01:41]} 40. b7 {[%clk 0:00:30]}  Nb8 {[%clk 0:01:41]} 41. f4 {[%clk 0:00:26]}  Kg8 {[%clk 0:01:41]} 42. Kf2 {[%clk 0:00:24]}  Kf8 {[%clk 0:01:42]} 43. Ke3 {[%clk 0:00:23]}  Ke7 {[%clk 0:01:43]} 44. Kd4 {[%clk 0:00:23]}  f6 {[%clk 0:01:40]} 45. Kc5 {[%clk 0:00:23]}  Kd7 {[%clk 0:01:41]} 46. Kb6 {[%clk 0:00:22]}  g5 {[%clk 0:01:40]} 47. fxg5 {[%clk 0:00:21]}  hxg5 {[%clk 0:01:41]} 48. Ka7 {[%clk 0:00:20]}  Kc7 {[%clk 0:01:39]} 49. Na3 {[%clk 0:00:14]}  Nc6+ {[%clk 0:01:36]} 50. Ka8 {[%clk 0:00:14]}  e5 {[%clk 0:01:36]} 51. Nb5+ {[%clk 0:00:14]}  Kb6 {[%clk 0:01:37]} 52. Nd6 {[%clk 0:00:12]}  Kc7 {[%clk 0:01:36]} 53. Ne8+ {[%clk 0:00:11]}  Kd7 {[%clk 0:01:33]} 54. Nxf6+ {[%clk 0:00:12]}  Ke6 {[%clk 0:01:33]} 55. Ng4 {[%clk 0:00:11]}  Kf5 {[%clk 0:01:31]} 56. b8=Q {[%clk 0:00:11]}  Nxb8 {[%clk 0:01:32]} 57. Kxb8 {[%clk 0:00:12]}  Kf4 {[%clk 0:01:32]} 58. Kc7 {[%clk 0:00:09]}  e4 {[%clk 0:01:32]} 59. Kd6 {[%clk 0:00:05]}  e3 {[%clk 0:01:32]} 60. Nxe3 {[%clk 0:00:05]}  Kxe3 {[%clk 0:01:33]} 61. Ke5 {[%clk 0:00:05]}  Kf2 {[%clk 0:01:33]} 62. g4 {[%clk 0:00:05]}  Kg2 {[%clk 0:01:34]} 63. Kf5 {[%clk 0:00:05]}  Kxh3 {[%clk 0:01:33]} 64. Kxg5 {[%clk 0:00:06]}  Kg3 {[%clk 0:01:33]} 65. Kf5 {[%clk 0:00:07]}  Kh4 {[%clk 0:01:33]} 66. g5 {[%clk 0:00:07]}  Kh5 {[%clk 0:01:34]} 67. Kf6 {[%clk 0:00:07]}  Kg4 {[%clk 0:01:34]} 68. g6 {[%clk 0:00:08]} 1-0


[Site "https://www.chess.com"]

[Event "Titled Tuesday Blitz November 22 Late 2022"]
[White "Thomas, Anysia"]
[Black "Lewtak, Damian"]
[WhiteFideId "670472"]
[BlackFideId "1141724"]
[WhiteElo "2069"]
[BlackElo "2329"]
[Result "1-0"]
[Round "01"]
[TimeControl "180+1"]
[Date "2022.11.23"]
[WhiteClock "0:00:57"]
[BlackClock "0:00:13"]

1. d4 {[%clk 0:02:54]}  d5 {[%clk 0:02:58]} 2. c4 {[%clk 0:02:49]}  c6 {[%clk 0:02:58]} 3. Nf3 {[%clk 0:02:44]}  Nf6 {[%clk 0:02:57]} 4. e3 {[%clk 0:02:43]}  Bf5 {[%clk 0:02:57]} 5. Nc3 {[%clk 0:02:40]}  e6 {[%clk 0:02:57]} 6. Nh4 {[%clk 0:02:40]}  Bg6 {[%clk 0:02:56]} 7. g3 {[%clk 0:02:34]}  Nbd7 {[%clk 0:02:55]} 8. Be2 {[%clk 0:02:32]}  Be7 {[%clk 0:02:54]} 9. O-O {[%clk 0:02:32]}  O-O {[%clk 0:02:54]} 10. b3 {[%clk 0:02:32]}  Re8 {[%clk 0:02:53]} 11. Bb2 {[%clk 0:02:32]}  Rc8 {[%clk 0:02:48]} 12. Nxg6 {[%clk 0:02:32]}  hxg6 {[%clk 0:02:46]} 13. Bf3 {[%clk 0:02:33]}  Bf8 {[%clk 0:02:41]} 14. e4 {[%clk 0:02:31]}  dxe4 {[%clk 0:02:39]} 15. Nxe4 {[%clk 0:02:32]}  Nxe4 {[%clk 0:02:38]} 16. Bxe4 {[%clk 0:02:33]}  e5 {[%clk 0:02:36]} 17. Bg2 {[%clk 0:02:08]}  Bd6 {[%clk 0:02:23]} 18. Qd2 {[%clk 0:01:58]}  exd4 {[%clk 0:02:16]} 19. Bxd4 {[%clk 0:01:56]}  Be5 {[%clk 0:02:14]} 20. Rad1 {[%clk 0:01:49]}  Nb6 {[%clk 0:01:46]} 21. Qb2 {[%clk 0:01:29]}  Bxd4 {[%clk 0:01:43]} 22. Rxd4 {[%clk 0:01:29]}  Qf6 {[%clk 0:01:44]} 23. Qd2 {[%clk 0:01:25]}  Rcd8 {[%clk 0:01:32]} 24. Rxd8 {[%clk 0:01:22]}  Rxd8 {[%clk 0:01:33]} 25. Qa5 {[%clk 0:01:21]}  Ra8 {[%clk 0:01:19]} 26. Re1 {[%clk 0:01:20]}  Qd8 {[%clk 0:01:11]} 27. Bh3 {[%clk 0:01:13]}  Kh7 {[%clk 0:00:38]} 28. Qe5 {[%clk 0:01:10]}  a5 {[%clk 0:00:30]} 29. Bg2 {[%clk 0:01:07]}  a4 {[%clk 0:00:28]} 30. Be4 {[%clk 0:01:05]}  axb3 {[%clk 0:00:26]} 31. axb3 {[%clk 0:01:06]}  Rc8 {[%clk 0:00:20]} 32. h4 {[%clk 0:01:06]}  Kg8 {[%clk 0:00:19]} 33. h5 {[%clk 0:01:04]}  gxh5 {[%clk 0:00:20]} 34. Qxh5 {[%clk 0:01:04]}  Qd2 {[%clk 0:00:13]} 35. Bh7+ {[%clk 0:00:57]} 1-0


[Site "https://www.chess.com"]

[Event "Titled Tuesday Blitz November 22 Late 2022"]
[White "Tirelli, Mauro"]
[Black "Principe, Gerson"]
[WhiteFideId "845353"]
[BlackFideId "3804550"]
[WhiteElo "2166"]
[BlackElo "2280"]
[Result "0-1"]
[Round "01"]
[TimeControl "180+1"]
[Date "2022.11.23"]
[WhiteClock "0:00:01"]
[BlackClock "0:01:57"]

1. d4 {[%clk 0:00:30]}  Nf6 {[%clk 0:02:58]} 2. c4 {[%clk 0:00:30]}  e6 {[%clk 0:02:58]} 3. Nc3 {[%clk 0:00:29]}  Bb4 {[%clk 0:02:58]} 4. e3 {[%clk 0:00:29]}  O-O {[%clk 0:02:57]} 5. Bd3 {[%clk 0:00:28]}  d5 {[%clk 0:02:58]} 6. Nf3 {[%clk 0:00:27]}  dxc4 {[%clk 0:02:53]} 7. Bxc4 {[%clk 0:00:28]}  b6 {[%clk 0:02:54]} 8. O-O {[%clk 0:00:27]}  Bb7 {[%clk 0:02:54]} 9. a3 {[%clk 0:00:27]}  Be7 {[%clk 0:02:54]} 10. Qe2 {[%clk 0:00:26]}  Nbd7 {[%clk 0:02:55]} 11. Rd1 {[%clk 0:00:26]}  a6 {[%clk 0:02:55]} 12. b4 {[%clk 0:00:24]}  Re8 {[%clk 0:02:45]} 13. Rb1 {[%clk 0:00:22]}  Qc8 {[%clk 0:02:39]} 14. e4 {[%clk 0:00:21]}  c5 {[%clk 0:02:31]} 15. bxc5 {[%clk 0:00:19]}  bxc5 {[%clk 0:02:31]} 16. d5 {[%clk 0:00:17]}  exd5 {[%clk 0:02:31]} 17. exd5 {[%clk 0:00:15]}  Bd6 {[%clk 0:02:30]} 18. Qc2 {[%clk 0:00:12]}  Qc7 {[%clk 0:02:29]} 19. Bg5 {[%clk 0:00:07]}  h6 {[%clk 0:02:29]} 20. Bh4 {[%clk 0:00:07]}  Rab8 {[%clk 0:02:26]} 21. Bg3 {[%clk 0:00:07]}  Bxg3 {[%clk 0:02:26]} 22. hxg3 {[%clk 0:00:06]}  Qd6 {[%clk 0:02:25]} 23. Ne2 {[%clk 0:00:04]}  Nb6 {[%clk 0:02:16]} 24. Nf4 {[%clk 0:00:03]}  Red8 {[%clk 0:02:10]} 25. Bf1 {[%clk 0:00:02]}  Nbxd5 {[%clk 0:02:06]} 26. Qf5 {[%clk 0:00:02]}  Qe7 {[%clk 0:01:59]} 27. Ne5 {[%clk 0:00:01]}  Nxf4 {[%clk 0:01:57]} 0-1


[Site "https://www.chess.com"]

[Event "Titled Tuesday Blitz November 22 Late 2022"]
[White "Todev, Simeon"]
[Black "Hjartarson, Johann"]
[WhiteFideId "2925133"]
[BlackFideId "2300044"]
[WhiteElo "1938"]
[BlackElo "2458"]
[Result "0-1"]
[Round "01"]
[TimeControl "180+1"]
[Date "2022.11.23"]
[WhiteClock "0:00:20"]
[BlackClock "0:01:05"]

1. e4 {[%clk 0:02:58]}  g6 {[%clk 0:02:58]} 2. d4 {[%clk 0:02:56]}  Bg7 {[%clk 0:02:58]} 3. Nf3 {[%clk 0:02:52]}  d6 {[%clk 0:02:58]} 4. Bc4 {[%clk 0:02:45]}  a6 {[%clk 0:02:58]} 5. a4 {[%clk 0:02:43]}  b6 {[%clk 0:02:55]} 6. Nc3 {[%clk 0:02:42]}  e6 {[%clk 0:02:55]} 7. h4 {[%clk 0:02:39]}  h6 {[%clk 0:02:53]} 8. Qe2 {[%clk 0:02:39]}  Bb7 {[%clk 0:02:50]} 9. e5 {[%clk 0:02:35]}  d5 {[%clk 0:02:48]} 10. Bd3 {[%clk 0:02:34]}  c5 {[%clk 0:02:44]} 11. b3 {[%clk 0:02:26]}  Nd7 {[%clk 0:02:36]} 12. Be3 {[%clk 0:02:26]}  Ne7 {[%clk 0:02:34]} 13. g4 {[%clk 0:02:21]}  Qc7 {[%clk 0:02:33]} 14. a5 {[%clk 0:02:10]}  cxd4 {[%clk 0:02:19]} 15. Bxd4 {[%clk 0:02:08]}  Nc6 {[%clk 0:02:16]} 16. axb6 {[%clk 0:02:06]}  Nxd4 {[%clk 0:02:09]} 17. bxc7 {[%clk 0:01:58]}  Nxe2 {[%clk 0:02:08]} 18. Nxe2 {[%clk 0:01:52]}  Nxe5 {[%clk 0:02:08]} 19. Nxe5 {[%clk 0:01:49]}  Bxe5 {[%clk 0:02:07]} 20. Ra4 {[%clk 0:01:46]}  Bxc7 {[%clk 0:02:03]} 21. Kd2 {[%clk 0:01:46]}  Ke7 {[%clk 0:02:00]} 22. Rha1 {[%clk 0:01:45]}  a5 {[%clk 0:01:59]} 23. c4 {[%clk 0:01:29]}  Bb6 {[%clk 0:01:50]} 24. Ke1 {[%clk 0:01:22]}  dxc4 {[%clk 0:01:47]} 25. Bxc4 {[%clk 0:01:19]}  Rhd8 {[%clk 0:01:44]} 26. R4a2 {[%clk 0:01:09]}  Bc5 {[%clk 0:01:41]} 27. Kf1 {[%clk 0:01:07]}  Bb4 {[%clk 0:01:40]} 28. Ng3 {[%clk 0:00:54]}  Rd4 {[%clk 0:01:31]} 29. Be2 {[%clk 0:00:48]}  Rc8 {[%clk 0:01:29]} 30. Rd1 {[%clk 0:00:35]}  Rxd1+ {[%clk 0:01:26]} 31. Bxd1 {[%clk 0:00:36]}  Bd5 {[%clk 0:01:17]} 32. Ke2 {[%clk 0:00:31]}  Rc3 {[%clk 0:01:14]} 33. Rb2 {[%clk 0:00:26]}  Bf3+ {[%clk 0:01:12]} 34. Kd2 {[%clk 0:00:24]}  Rxb3+ {[%clk 0:01:11]} 35. Kc1 {[%clk 0:00:22]}  Bxd1 {[%clk 0:01:08]} 36. Ra2 {[%clk 0:00:19]}  Bxg4 {[%clk 0:01:05]} 37. Rd2 {[%clk 0:00:20]} 0-1


[Site "https://www.chess.com"]

[Event "Titled Tuesday Blitz November 22 Late 2022"]
[White "Torres Dominguez, David"]
[Black "Skatchkov, Valery"]
[WhiteFideId "2220857"]
[BlackFideId "24195812"]
[WhiteElo "2037"]
[BlackElo "2147"]
[Result "0-1"]
[Round "01"]
[TimeControl "180+1"]
[Date "2022.11.23"]
[WhiteClock "0:00:08"]
[BlackClock "0:02:17"]

1. e4 {[%clk 0:02:57]}  e5 {[%clk 0:02:59]} 2. Bc4 {[%clk 0:02:55]}  Nf6 {[%clk 0:02:59]} 3. Nc3 {[%clk 0:02:56]}  Nxe4 {[%clk 0:02:58]} 4. Qh5 {[%clk 0:02:56]}  Nd6 {[%clk 0:02:57]} 5. Qxe5+ {[%clk 0:02:56]}  Qe7 {[%clk 0:02:57]} 6. Qxe7+ {[%clk 0:02:56]}  Bxe7 {[%clk 0:02:58]} 7. Be2 {[%clk 0:02:56]}  O-O {[%clk 0:02:59]} 8. Nd5 {[%clk 0:02:56]}  Bd8 {[%clk 0:02:59]} 9. c3 {[%clk 0:02:56]}  c6 {[%clk 0:02:59]} 10. Ne3 {[%clk 0:02:54]}  Ne4 {[%clk 0:02:58]} 11. d3 {[%clk 0:02:52]}  Nf6 {[%clk 0:02:58]} 12. Nf3 {[%clk 0:02:51]}  d5 {[%clk 0:02:59]} 13. Bd2 {[%clk 0:02:48]}  Na6 {[%clk 0:03:00]} 14. O-O-O {[%clk 0:02:46]}  Nc5 {[%clk 0:03:00]} 15. Rhe1 {[%clk 0:02:46]}  a5 {[%clk 0:03:00]} 16. Nd4 {[%clk 0:02:40]}  a4 {[%clk 0:03:00]} 17. f3 {[%clk 0:02:38]}  Bc7 {[%clk 0:03:00]} 18. g3 {[%clk 0:02:34]}  Bd7 {[%clk 0:03:00]} 19. Ndf5 {[%clk 0:02:26]}  Rfe8 {[%clk 0:02:59]} 20. d4 {[%clk 0:02:22]}  Ne6 {[%clk 0:02:55]} 21. Ng2 {[%clk 0:02:16]}  a3 {[%clk 0:02:54]} 22. b3 {[%clk 0:02:15]}  h6 {[%clk 0:02:49]} 23. Bd3 {[%clk 0:02:15]}  c5 {[%clk 0:02:47]} 24. Re2 {[%clk 0:01:59]}  cxd4 {[%clk 0:02:46]} 25. Nxd4 {[%clk 0:01:53]}  Nxd4 {[%clk 0:02:45]} 26. Rxe8+ {[%clk 0:01:53]}  Rxe8 {[%clk 0:02:43]} 27. cxd4 {[%clk 0:01:54]}  Bb6 {[%clk 0:02:44]} 28. Bb4 {[%clk 0:01:40]}  Bxd4 {[%clk 0:02:39]} 29. Bxa3 {[%clk 0:01:39]}  Bh3 {[%clk 0:02:26]} 30. Nf4 {[%clk 0:01:30]}  Be3+ {[%clk 0:02:27]} 31. Kb1 {[%clk 0:01:30]}  Bxf4 {[%clk 0:02:27]} 32. gxf4 {[%clk 0:01:30]}  Re3 {[%clk 0:02:28]} 33. Bd6 {[%clk 0:01:07]}  Rxf3 {[%clk 0:02:26]} 34. Bc2 {[%clk 0:00:56]}  Ne4 {[%clk 0:02:25]} 35. Bxe4 {[%clk 0:00:49]}  dxe4 {[%clk 0:02:26]} 36. Re1 {[%clk 0:00:42]}  Bf5 {[%clk 0:02:23]} 37. Kc1 {[%clk 0:00:39]}  Rf2 {[%clk 0:02:23]} 38. a4 {[%clk 0:00:36]}  Rxh2 {[%clk 0:02:23]} 39. b4 {[%clk 0:00:29]}  Ra2 {[%clk 0:02:23]} 40. a5 {[%clk 0:00:29]}  h5 {[%clk 0:02:23]} 41. Re3 {[%clk 0:00:23]}  h4 {[%clk 0:02:23]} 42. Rc3 {[%clk 0:00:17]}  h3 {[%clk 0:02:22]} 43. Kb1 {[%clk 0:00:12]}  h2 {[%clk 0:02:20]} 44. Rc1 {[%clk 0:00:08]}  Rg2 {[%clk 0:02:17]} 0-1


[Site "https://www.chess.com"]

[Event "Titled Tuesday Blitz November 22 Late 2022"]
[White "Wirig, Anthony"]
[Black "Vlassov, Nikolai"]
[WhiteFideId "615013"]
[BlackFideId "4103360"]
[WhiteElo "2487"]
[BlackElo "2324"]
[Result "1-0"]
[Round "01"]
[TimeControl "180+1"]
[Date "2022.11.22"]
[WhiteClock "0:00:14"]
[BlackClock "0:01:05"]

1. d4 {[%clk 0:02:54]}  Nf6 {[%clk 0:02:58]} 2. Bg5 {[%clk 0:02:52]}  e6 {[%clk 0:02:58]} 3. Nd2 {[%clk 0:02:52]}  h6 {[%clk 0:02:58]} 4. Bh4 {[%clk 0:02:51]}  c5 {[%clk 0:02:57]} 5. dxc5 {[%clk 0:02:41]}  Bxc5 {[%clk 0:02:57]} 6. e3 {[%clk 0:02:42]}  Nc6 {[%clk 0:02:54]} 7. c3 {[%clk 0:02:41]}  d5 {[%clk 0:02:53]} 8. Ngf3 {[%clk 0:02:41]}  O-O {[%clk 0:02:44]} 9. Bd3 {[%clk 0:02:40]}  Be7 {[%clk 0:02:44]} 10. O-O {[%clk 0:02:37]}  Bd7 {[%clk 0:02:36]} 11. Qe2 {[%clk 0:02:34]}  Rc8 {[%clk 0:02:36]} 12. Rfe1 {[%clk 0:02:23]}  Qb6 {[%clk 0:02:35]} 13. Rab1 {[%clk 0:02:21]}  Ne8 {[%clk 0:02:24]} 14. Bxe7 {[%clk 0:02:13]}  Nxe7 {[%clk 0:02:25]} 15. e4 {[%clk 0:02:13]}  dxe4 {[%clk 0:02:19]} 16. Nxe4 {[%clk 0:02:05]}  Nd6 {[%clk 0:02:18]} 17. Ne5 {[%clk 0:01:44]}  Qc7 {[%clk 0:01:51]} 18. Rbd1 {[%clk 0:01:07]}  Nd5 {[%clk 0:01:43]} 19. Nxd6 {[%clk 0:00:58]}  Qxd6 {[%clk 0:01:40]} 20. c4 {[%clk 0:00:43]}  Nf4 {[%clk 0:01:39]} 21. Qe4 {[%clk 0:00:40]}  Nxd3 {[%clk 0:01:22]} 22. Rxd3 {[%clk 0:00:40]}  Qb4 {[%clk 0:01:21]} 23. Rxd7 {[%clk 0:00:36]}  Qxb2 {[%clk 0:01:16]} 24. Rxb7 {[%clk 0:00:30]}  Qxa2 {[%clk 0:01:15]} 25. h4 {[%clk 0:00:29]}  a5 {[%clk 0:01:13]} 26. Qf4 {[%clk 0:00:19]}  f6 {[%clk 0:01:10]} 27. Qg4 {[%clk 0:00:15]}  g5 {[%clk 0:01:05]} 28. Qxe6+ {[%clk 0:00:14]} 1-0


[Site "https://www.chess.com"]

[Event "Titled Tuesday Blitz November 22 Late 2022"]
[White "Yi, Richard"]
[Black "Jobava, Baadur"]
[WhiteFideId "2079518"]
[BlackFideId "13601520"]
[WhiteElo "2147"]
[BlackElo "2582"]
[Result "0-1"]
[Round "01"]
[TimeControl "180+1"]
[Date "2022.11.22"]
[WhiteClock "0:00:02"]
[BlackClock "0:00:07"]

1. d4 {[%clk 0:02:59]}  Nf6 {[%clk 0:02:55]} 2. c4 {[%clk 0:03:00]}  c5 {[%clk 0:02:56]} 3. d5 {[%clk 0:03:00]}  g6 {[%clk 0:02:56]} 4. Nc3 {[%clk 0:03:00]}  Bg7 {[%clk 0:02:57]} 5. e4 {[%clk 0:03:01]}  d6 {[%clk 0:02:58]} 6. f3 {[%clk 0:03:02]}  O-O {[%clk 0:02:58]} 7. Bg5 {[%clk 0:03:02]}  h6 {[%clk 0:02:58]} 8. Be3 {[%clk 0:03:02]}  Kh7 {[%clk 0:02:58]} 9. Qd2 {[%clk 0:03:02]}  e6 {[%clk 0:02:57]} 10. Nge2 {[%clk 0:03:03]}  exd5 {[%clk 0:02:55]} 11. cxd5 {[%clk 0:03:04]}  a6 {[%clk 0:02:54]} 12. a4 {[%clk 0:03:04]}  Nbd7 {[%clk 0:02:54]} 13. Ng3 {[%clk 0:03:04]}  Rb8 {[%clk 0:02:53]} 14. Be2 {[%clk 0:03:04]}  Re8 {[%clk 0:02:52]} 15. O-O {[%clk 0:03:05]}  Ne5 {[%clk 0:02:53]} 16. h3 {[%clk 0:03:03]}  Ned7 {[%clk 0:02:39]} 17. f4 {[%clk 0:02:57]}  h5 {[%clk 0:02:36]} 18. Bf3 {[%clk 0:02:56]}  b5 {[%clk 0:02:34]} 19. axb5 {[%clk 0:02:56]}  axb5 {[%clk 0:02:35]} 20. e5 {[%clk 0:02:48]}  dxe5 {[%clk 0:02:35]} 21. f5 {[%clk 0:02:48]}  Nb6 {[%clk 0:02:03]} 22. fxg6+ {[%clk 0:02:36]}  fxg6 {[%clk 0:02:04]} 23. Bxc5 {[%clk 0:02:36]}  Nc4 {[%clk 0:02:03]} 24. Qc2 {[%clk 0:02:32]}  h4 {[%clk 0:01:48]} 25. Nge4 {[%clk 0:02:29]}  Bf5 {[%clk 0:01:48]} 26. Ra7 {[%clk 0:02:10]}  Rc8 {[%clk 0:01:34]} 27. Bf2 {[%clk 0:02:03]}  Nd6 {[%clk 0:01:20]} 28. Bxh4 {[%clk 0:01:25]}  Ndxe4 {[%clk 0:01:18]} 29. Bxe4 {[%clk 0:01:22]}  Bxe4 {[%clk 0:01:09]} 30. Qf2 {[%clk 0:00:33]}  Bf5 {[%clk 0:01:02]} 31. g4 {[%clk 0:00:29]}  Rc7 {[%clk 0:00:22]} 32. gxf5 {[%clk 0:00:25]}  Rxa7 {[%clk 0:00:22]} 33. Qxa7 {[%clk 0:00:26]}  e4 {[%clk 0:00:13]} 34. fxg6+ {[%clk 0:00:24]}  Kxg6 {[%clk 0:00:14]} 35. Qe3 {[%clk 0:00:19]}  Qd6 {[%clk 0:00:10]} 36. Nxb5 {[%clk 0:00:15]}  Qe5 {[%clk 0:00:08]} 37. Nd4 {[%clk 0:00:12]}  Nxd5 {[%clk 0:00:06]} 38. Qg5+ {[%clk 0:00:02]}  Qxg5+ {[%clk 0:00:05]} 39. Bxg5 {[%clk 0:00:02]}  Bxd4+ {[%clk 0:00:06]} 40. Kh1 {[%clk 0:00:02]}  Kxg5 {[%clk 0:00:06]} 41. Rd1 {[%clk 0:00:02]}  e3 {[%clk 0:00:07]} 0-1


[Site "https://www.chess.com"]

[Event "Titled Tuesday Blitz November 22 Late 2022"]
[White "Zakarian, David"]
[Black "Suder, Jakub"]
[WhiteFideId "13301276"]
[BlackFideId "1195310"]
[WhiteElo "2304"]
[BlackElo "2243"]
[Result "0-1"]
[Round "01"]
[TimeControl "180+1"]
[Date "2022.11.23"]
[WhiteClock "0:01:40"]
[BlackClock "0:01:48"]

1. d4 {[%clk 0:03:00]}  d5 {[%clk 0:02:59]} 2. c4 {[%clk 0:02:59]}  dxc4 {[%clk 0:03:00]} 3. Nf3 {[%clk 0:02:58]}  a6 {[%clk 0:03:00]} 4. a4 {[%clk 0:02:53]}  Nc6 {[%clk 0:02:57]} 5. e3 {[%clk 0:02:53]}  e5 {[%clk 0:02:56]} 6. dxe5 {[%clk 0:02:50]}  Qxd1+ {[%clk 0:02:51]} 7. Kxd1 {[%clk 0:02:50]}  Be6 {[%clk 0:02:50]} 8. Nc3 {[%clk 0:02:38]}  O-O-O+ {[%clk 0:02:50]} 9. Bd2 {[%clk 0:02:38]}  Nge7 {[%clk 0:02:42]} 10. e4 {[%clk 0:02:24]}  Ng6 {[%clk 0:02:38]} 11. Ng5 {[%clk 0:02:21]}  Ncxe5 {[%clk 0:02:18]} 12. f4 {[%clk 0:02:16]}  Nxf4 {[%clk 0:02:16]} 13. Nxe6 {[%clk 0:02:10]}  fxe6 {[%clk 0:02:13]} 14. Kc2 {[%clk 0:02:10]}  Nfd3 {[%clk 0:02:12]} 15. g3 {[%clk 0:02:06]}  Bb4 {[%clk 0:02:05]} 16. Bh3 {[%clk 0:02:06]}  Rhe8 {[%clk 0:02:01]} 17. Rhf1 {[%clk 0:02:05]}  Kb8 {[%clk 0:01:55]} 18. Bg5 {[%clk 0:01:53]}  Be7 {[%clk 0:01:53]} 19. Bd2 {[%clk 0:01:45]}  Nb4+ {[%clk 0:01:52]} 20. Kd1 {[%clk 0:01:42]}  Bg5 {[%clk 0:01:52]} 21. Rf2 {[%clk 0:01:40]}  Ned3 {[%clk 0:01:48]} 0-1


[Site "https://www.chess.com"]